{"text_format":"1","workbook":"xlsx","n_sheets":9,"sheets":["7.2.1 Inserción Laboral","7.3.1 Profesionalización","7.4.1 Contención","10. RH","Refugio","9.Desglose","Resumen","Tabulador","Cat_refugio"],"not_rendered":{"charts":0,"images":0,"macros":1,"external_links":1,"defined_names":12,"comments":0,"pivot_tables":2},"unopened":[],"bounds":{"document_bytes":16777216,"sheet_cells":100000,"rows_first":2000,"rows_last":500,"rows_between":2000,"halvings":0,"cell_chars":16384,"cell_head_chars":4096},"cells_cut":0,"cells_raw":0,"read":"whole","date_system":"1900"}

{"sheet":"7.2.1 Inserción Laboral","index":0,"n_rows":21,"n_cols":8,"rows_kept":21,"cut":false,"hidden":false,"merged":[[3,0,3,2],[0,3,0,5],[1,3,1,7]]}
[null,null,"Nombre de la Representante Legal o Titular:"]
[null,null,"Nombre de la OSC o IP:"]
[]
["7.2.1 PROGRAMA DE INSERCIÓN LABORAL"]
[]
["No.","Nombre del Taller o Capacitación","Nombre de la Instancia o Capacitador","Número de Horas durante 8 meses","Descripción del Insumo ","Insumos","Pago prestación de servicios","Total"]
[1,null,null,null,null,null,null,{"$f":"Tabla15[[#This Row],[Pago prestación de servicios]]+Tabla15[[#This Row],[Insumos]]","v":0}]
[2,null,null,null,null,null,null,{"$f":"Tabla15[[#This Row],[Pago prestación de servicios]]+Tabla15[[#This Row],[Insumos]]","v":0}]
[3,null,null,null,null,null,null,{"$f":"Tabla15[[#This Row],[Pago prestación de servicios]]+Tabla15[[#This Row],[Insumos]]","v":0}]
[4,null,null,null,null,null,null,{"$f":"Tabla15[[#This Row],[Pago prestación de servicios]]+Tabla15[[#This Row],[Insumos]]","v":0}]
[5,null,null,null,null,null,null,{"$f":"Tabla15[[#This Row],[Pago prestación de servicios]]+Tabla15[[#This Row],[Insumos]]","v":0}]
[6,null,null,null,null,null,null,{"$f":"Tabla15[[#This Row],[Pago prestación de servicios]]+Tabla15[[#This Row],[Insumos]]","v":0}]
[7,null,null,null,null,null,null,{"$f":"Tabla15[[#This Row],[Pago prestación de servicios]]+Tabla15[[#This Row],[Insumos]]","v":0}]
[8,null,null,null,null,null,null,{"$f":"Tabla15[[#This Row],[Pago prestación de servicios]]+Tabla15[[#This Row],[Insumos]]","v":0}]
[9,null,null,null,null,null,null,{"$f":"Tabla15[[#This Row],[Pago prestación de servicios]]+Tabla15[[#This Row],[Insumos]]","v":0}]
[10,null,null,null,null,null,null,{"$f":"Tabla15[[#This Row],[Pago prestación de servicios]]+Tabla15[[#This Row],[Insumos]]","v":0}]
["Total",null,null,null,null,{"$f":"SUBTOTAL(109,Tabla15[Insumos])","v":0},{"$f":"SUBTOTAL(109,Tabla15[Pago prestación de servicios])","v":0},{"$f":"SUBTOTAL(109,Tabla15[Total])","v":0}]
[]
[]
[]
["Nota: Los montos de la columna \"Insumos\" y  \"Pago de Prestación de Servicios\" deberá capturarlo en la Hoja \"Refugio\"."]

{"sheet":"7.3.1 Profesionalización","index":1,"n_rows":61,"n_cols":11,"rows_kept":61,"cut":false,"hidden":false,"merged":[[1,0,1,2],[2,5,2,7],[3,3,4,5],[3,6,4,8],[28,11,29,11]]}
[]
["7.3.1 PROGRAMA DE PROFESIONALIZACIÓN"]
[]
[null,null,null,"Evento Local",null,null,"Evento foráneo\nSERVICIOS (solo en caso de requerirse)"]
[]
["Modalidad de la capacitación (Diplomado, Taller, Curso)/ Áreas Beneficiadas","Institución, Organización que imparte.","Numero de personas que asistirán","Pago prestación de servicios","Renta de espacio para capacitación (Coffe Break)","Material didáctico","Transporte (Aéreo, Terrestre)","Viáticos (Hospedaje, Alimentación)","Pago prestación de servicios2","Costo por personas ","Presupuesto Solicitado al CNEGSR"]
[null,null,null,null,null,null,null,null,null,{"$f":"IFERROR('7.3.1 Profesionalización'!$K7/'7.3.1 Profesionalización'!$C7,\"$0.00\")","v":"$0.00"},{"$f":"'7.3.1 Profesionalización'!$I7+'7.3.1 Profesionalización'!$H7+'7.3.1 Profesionalización'!$G7+'7.3.1 Profesionalización'!$D7+'7.3.1 Profesionalización'!$E7+'7.3.1 Profesionalización'!$F7","v":0}]
[null,null,null,null,null,null,null,null,null,{"$f":"IFERROR('7.3.1 Profesionalización'!$K8/'7.3.1 Profesionalización'!$C8,\"$0.00\")","v":"$0.00"},{"$f":"'7.3.1 Profesionalización'!$I8+'7.3.1 Profesionalización'!$H8+'7.3.1 Profesionalización'!$G8+'7.3.1 Profesionalización'!$D8+'7.3.1 Profesionalización'!$E8+'7.3.1 Profesionalización'!$F8","v":0}]
[null,null,null,null,null,null,null,null,null,{"$f":"IFERROR('7.3.1 Profesionalización'!$K9/'7.3.1 Profesionalización'!$C9,\"$0.00\")","v":"$0.00"},{"$f":"'7.3.1 Profesionalización'!$I9+'7.3.1 Profesionalización'!$H9+'7.3.1 Profesionalización'!$G9+'7.3.1 Profesionalización'!$D9+'7.3.1 Profesionalización'!$E9+'7.3.1 Profesionalización'!$F9","v":0}]
[null,null,null,null,null,null,null,null,null,{"$f":"IFERROR('7.3.1 Profesionalización'!$K10/'7.3.1 Profesionalización'!$C10,\"$0.00\")","v":"$0.00"},{"$f":"'7.3.1 Profesionalización'!$I10+'7.3.1 Profesionalización'!$H10+'7.3.1 Profesionalización'!$G10+'7.3.1 Profesionalización'!$D10+'7.3.1 Profesionalización'!$E10+'7.3.1 Profesionalización'!$F10","v":0}]
[null,null,null,null,null,null,null,null,null,{"$f":"IFERROR('7.3.1 Profesionalización'!$K11/'7.3.1 Profesionalización'!$C11,\"$0.00\")","v":"$0.00"},{"$f":"'7.3.1 Profesionalización'!$I11+'7.3.1 Profesionalización'!$H11+'7.3.1 Profesionalización'!$G11+'7.3.1 Profesionalización'!$D11+'7.3.1 Profesionalización'!$E11+'7.3.1 Profesionalización'!$F11","v":0}]
[null,null,null,null,null,null,null,null,null,{"$f":"IFERROR('7.3.1 Profesionalización'!$K12/'7.3.1 Profesionalización'!$C12,\"$0.00\")","v":"$0.00"},{"$f":"'7.3.1 Profesionalización'!$I12+'7.3.1 Profesionalización'!$H12+'7.3.1 Profesionalización'!$G12+'7.3.1 Profesionalización'!$D12+'7.3.1 Profesionalización'!$E12+'7.3.1 Profesionalización'!$F12","v":0}]
[null,null,null,null,null,null,null,null,null,{"$f":"IFERROR('7.3.1 Profesionalización'!$K13/'7.3.1 Profesionalización'!$C13,\"$0.00\")","v":"$0.00"},{"$f":"'7.3.1 Profesionalización'!$I13+'7.3.1 Profesionalización'!$H13+'7.3.1 Profesionalización'!$G13+'7.3.1 Profesionalización'!$D13+'7.3.1 Profesionalización'!$E13+'7.3.1 Profesionalización'!$F13","v":0}]
[null,null,null,null,null,null,null,null,null,{"$f":"IFERROR('7.3.1 Profesionalización'!$K14/'7.3.1 Profesionalización'!$C14,\"$0.00\")","v":"$0.00"},{"$f":"'7.3.1 Profesionalización'!$I14+'7.3.1 Profesionalización'!$H14+'7.3.1 Profesionalización'!$G14+'7.3.1 Profesionalización'!$D14+'7.3.1 Profesionalización'!$E14+'7.3.1 Profesionalización'!$F14","v":0}]
[null,null,null,null,null,null,null,null,null,{"$f":"IFERROR('7.3.1 Profesionalización'!$K15/'7.3.1 Profesionalización'!$C15,\"$0.00\")","v":"$0.00"},{"$f":"'7.3.1 Profesionalización'!$I15+'7.3.1 Profesionalización'!$H15+'7.3.1 Profesionalización'!$G15+'7.3.1 Profesionalización'!$D15+'7.3.1 Profesionalización'!$E15+'7.3.1 Profesionalización'!$F15","v":0}]
[null,null,null,null,null,null,null,null,null,{"$f":"IFERROR('7.3.1 Profesionalización'!$K16/'7.3.1 Profesionalización'!$C16,\"$0.00\")","v":"$0.00"},{"$f":"'7.3.1 Profesionalización'!$I16+'7.3.1 Profesionalización'!$H16+'7.3.1 Profesionalización'!$G16+'7.3.1 Profesionalización'!$D16+'7.3.1 Profesionalización'!$E16+'7.3.1 Profesionalización'!$F16","v":0}]
[null,null,null,null,null,null,null,null,null,{"$f":"IFERROR('7.3.1 Profesionalización'!$K17/'7.3.1 Profesionalización'!$C17,\"$0.00\")","v":"$0.00"},{"$f":"'7.3.1 Profesionalización'!$I17+'7.3.1 Profesionalización'!$H17+'7.3.1 Profesionalización'!$G17+'7.3.1 Profesionalización'!$D17+'7.3.1 Profesionalización'!$E17+'7.3.1 Profesionalización'!$F17","v":0}]
[null,null,null,null,null,null,null,null,null,{"$f":"IFERROR('7.3.1 Profesionalización'!$K18/'7.3.1 Profesionalización'!$C18,\"$0.00\")","v":"$0.00"},{"$f":"'7.3.1 Profesionalización'!$I18+'7.3.1 Profesionalización'!$H18+'7.3.1 Profesionalización'!$G18+'7.3.1 Profesionalización'!$D18+'7.3.1 Profesionalización'!$E18+'7.3.1 Profesionalización'!$F18","v":0}]
[null,null,null,null,null,null,null,null,null,{"$f":"IFERROR('7.3.1 Profesionalización'!$K19/'7.3.1 Profesionalización'!$C19,\"$0.00\")","v":"$0.00"},{"$f":"'7.3.1 Profesionalización'!$I19+'7.3.1 Profesionalización'!$H19+'7.3.1 Profesionalización'!$G19+'7.3.1 Profesionalización'!$D19+'7.3.1 Profesionalización'!$E19+'7.3.1 Profesionalización'!$F19","v":0}]
[null,null,null,null,null,null,null,null,null,{"$f":"IFERROR('7.3.1 Profesionalización'!$K20/'7.3.1 Profesionalización'!$C20,\"$0.00\")","v":"$0.00"},{"$f":"'7.3.1 Profesionalización'!$I20+'7.3.1 Profesionalización'!$H20+'7.3.1 Profesionalización'!$G20+'7.3.1 Profesionalización'!$D20+'7.3.1 Profesionalización'!$E20+'7.3.1 Profesionalización'!$F20","v":0}]
[null,null,null,null,null,null,null,null,null,{"$f":"IFERROR('7.3.1 Profesionalización'!$K21/'7.3.1 Profesionalización'!$C21,\"$0.00\")","v":"$0.00"},{"$f":"'7.3.1 Profesionalización'!$I21+'7.3.1 Profesionalización'!$H21+'7.3.1 Profesionalización'!$G21+'7.3.1 Profesionalización'!$D21+'7.3.1 Profesionalización'!$E21+'7.3.1 Profesionalización'!$F21","v":0}]
[null,null,null,null,null,null,null,null,null,{"$f":"IFERROR('7.3.1 Profesionalización'!$K22/'7.3.1 Profesionalización'!$C22,\"$0.00\")","v":"$0.00"},{"$f":"'7.3.1 Profesionalización'!$I22+'7.3.1 Profesionalización'!$H22+'7.3.1 Profesionalización'!$G22+'7.3.1 Profesionalización'!$D22+'7.3.1 Profesionalización'!$E22+'7.3.1 Profesionalización'!$F22","v":0}]
[null,null,null,null,null,null,null,null,null,{"$f":"IFERROR('7.3.1 Profesionalización'!$K23/'7.3.1 Profesionalización'!$C23,\"$0.00\")","v":"$0.00"},{"$f":"'7.3.1 Profesionalización'!$I23+'7.3.1 Profesionalización'!$H23+'7.3.1 Profesionalización'!$G23+'7.3.1 Profesionalización'!$D23+'7.3.1 Profesionalización'!$E23+'7.3.1 Profesionalización'!$F23","v":0}]
[null,null,null,null,null,null,null,null,null,{"$f":"IFERROR('7.3.1 Profesionalización'!$K24/'7.3.1 Profesionalización'!$C24,\"$0.00\")","v":"$0.00"},{"$f":"'7.3.1 Profesionalización'!$I24+'7.3.1 Profesionalización'!$H24+'7.3.1 Profesionalización'!$G24+'7.3.1 Profesionalización'!$D24+'7.3.1 Profesionalización'!$E24+'7.3.1 Profesionalización'!$F24","v":0}]
[null,null,null,null,null,null,null,null,null,{"$f":"IFERROR('7.3.1 Profesionalización'!$K25/'7.3.1 Profesionalización'!$C25,\"$0.00\")","v":"$0.00"},{"$f":"'7.3.1 Profesionalización'!$I25+'7.3.1 Profesionalización'!$H25+'7.3.1 Profesionalización'!$G25+'7.3.1 Profesionalización'!$D25+'7.3.1 Profesionalización'!$E25+'7.3.1 Profesionalización'!$F25","v":0}]
[null,null,null,null,null,null,null,null,null,{"$f":"IFERROR('7.3.1 Profesionalización'!$K26/'7.3.1 Profesionalización'!$C26,\"$0.00\")","v":"$0.00"},{"$f":"'7.3.1 Profesionalización'!$I26+'7.3.1 Profesionalización'!$H26+'7.3.1 Profesionalización'!$G26+'7.3.1 Profesionalización'!$D26+'7.3.1 Profesionalización'!$E26+'7.3.1 Profesionalización'!$F26","v":0}]
[null,null,null,null,null,null,null,null,null,{"$f":"IFERROR('7.3.1 Profesionalización'!$K27/'7.3.1 Profesionalización'!$C27,\"$0.00\")","v":"$0.00"},{"$f":"'7.3.1 Profesionalización'!$I27+'7.3.1 Profesionalización'!$H27+'7.3.1 Profesionalización'!$G27+'7.3.1 Profesionalización'!$D27+'7.3.1 Profesionalización'!$E27+'7.3.1 Profesionalización'!$F27","v":0}]
[null,null,null,null,null,null,null,null,null,{"$f":"IFERROR('7.3.1 Profesionalización'!$K28/'7.3.1 Profesionalización'!$C28,\"$0.00\")","v":"$0.00"},{"$f":"'7.3.1 Profesionalización'!$I28+'7.3.1 Profesionalización'!$H28+'7.3.1 Profesionalización'!$G28+'7.3.1 Profesionalización'!$D28+'7.3.1 Profesionalización'!$E28+'7.3.1 Profesionalización'!$F28","v":0}]
[null,null,null,null,null,null,null,null,null,{"$f":"IFERROR('7.3.1 Profesionalización'!$K29/'7.3.1 Profesionalización'!$C29,\"$0.00\")","v":"$0.00"},{"$f":"'7.3.1 Profesionalización'!$I29+'7.3.1 Profesionalización'!$H29+'7.3.1 Profesionalización'!$G29+'7.3.1 Profesionalización'!$D29+'7.3.1 Profesionalización'!$E29+'7.3.1 Profesionalización'!$F29","v":0}]
[null,null,null,null,null,null,null,null,null,{"$f":"IFERROR('7.3.1 Profesionalización'!$K30/'7.3.1 Profesionalización'!$C30,\"$0.00\")","v":"$0.00"},{"$f":"'7.3.1 Profesionalización'!$I30+'7.3.1 Profesionalización'!$H30+'7.3.1 Profesionalización'!$G30+'7.3.1 Profesionalización'!$D30+'7.3.1 Profesionalización'!$E30+'7.3.1 Profesionalización'!$F30","v":0}]
[null,null,null,null,null,null,null,null,null,{"$f":"IFERROR('7.3.1 Profesionalización'!$K31/'7.3.1 Profesionalización'!$C31,\"$0.00\")","v":"$0.00"},{"$f":"'7.3.1 Profesionalización'!$I31+'7.3.1 Profesionalización'!$H31+'7.3.1 Profesionalización'!$G31+'7.3.1 Profesionalización'!$D31+'7.3.1 Profesionalización'!$E31+'7.3.1 Profesionalización'!$F31","v":0}]
[null,null,null,null,null,null,null,null,null,{"$f":"IFERROR('7.3.1 Profesionalización'!$K32/'7.3.1 Profesionalización'!$C32,\"$0.00\")","v":"$0.00"},{"$f":"'7.3.1 Profesionalización'!$I32+'7.3.1 Profesionalización'!$H32+'7.3.1 Profesionalización'!$G32+'7.3.1 Profesionalización'!$D32+'7.3.1 Profesionalización'!$E32+'7.3.1 Profesionalización'!$F32","v":0}]
[null,null,null,null,null,null,null,null,null,{"$f":"IFERROR('7.3.1 Profesionalización'!$K33/'7.3.1 Profesionalización'!$C33,\"$0.00\")","v":"$0.00"},{"$f":"'7.3.1 Profesionalización'!$I33+'7.3.1 Profesionalización'!$H33+'7.3.1 Profesionalización'!$G33+'7.3.1 Profesionalización'!$D33+'7.3.1 Profesionalización'!$E33+'7.3.1 Profesionalización'!$F33","v":0}]
[null,null,null,null,null,null,null,null,null,{"$f":"IFERROR('7.3.1 Profesionalización'!$K34/'7.3.1 Profesionalización'!$C34,\"$0.00\")","v":"$0.00"},{"$f":"'7.3.1 Profesionalización'!$I34+'7.3.1 Profesionalización'!$H34+'7.3.1 Profesionalización'!$G34+'7.3.1 Profesionalización'!$D34+'7.3.1 Profesionalización'!$E34+'7.3.1 Profesionalización'!$F34","v":0}]
[null,null,null,null,null,null,null,null,null,{"$f":"IFERROR('7.3.1 Profesionalización'!$K35/'7.3.1 Profesionalización'!$C35,\"$0.00\")","v":"$0.00"},{"$f":"'7.3.1 Profesionalización'!$I35+'7.3.1 Profesionalización'!$H35+'7.3.1 Profesionalización'!$G35+'7.3.1 Profesionalización'!$D35+'7.3.1 Profesionalización'!$E35+'7.3.1 Profesionalización'!$F35","v":0}]
[null,null,null,null,null,null,null,null,null,{"$f":"IFERROR('7.3.1 Profesionalización'!$K36/'7.3.1 Profesionalización'!$C36,\"$0.00\")","v":"$0.00"},{"$f":"'7.3.1 Profesionalización'!$I36+'7.3.1 Profesionalización'!$H36+'7.3.1 Profesionalización'!$G36+'7.3.1 Profesionalización'!$D36+'7.3.1 Profesionalización'!$E36+'7.3.1 Profesionalización'!$F36","v":0}]
[null,null,null,null,null,null,null,null,null,{"$f":"IFERROR('7.3.1 Profesionalización'!$K37/'7.3.1 Profesionalización'!$C37,\"$0.00\")","v":"$0.00"},{"$f":"'7.3.1 Profesionalización'!$I37+'7.3.1 Profesionalización'!$H37+'7.3.1 Profesionalización'!$G37+'7.3.1 Profesionalización'!$D37+'7.3.1 Profesionalización'!$E37+'7.3.1 Profesionalización'!$F37","v":0}]
[null,null,null,null,null,null,null,null,null,{"$f":"IFERROR('7.3.1 Profesionalización'!$K38/'7.3.1 Profesionalización'!$C38,\"$0.00\")","v":"$0.00"},{"$f":"'7.3.1 Profesionalización'!$I38+'7.3.1 Profesionalización'!$H38+'7.3.1 Profesionalización'!$G38+'7.3.1 Profesionalización'!$D38+'7.3.1 Profesionalización'!$E38+'7.3.1 Profesionalización'!$F38","v":0}]
[null,null,null,null,null,null,null,null,null,{"$f":"IFERROR('7.3.1 Profesionalización'!$K39/'7.3.1 Profesionalización'!$C39,\"$0.00\")","v":"$0.00"},{"$f":"'7.3.1 Profesionalización'!$I39+'7.3.1 Profesionalización'!$H39+'7.3.1 Profesionalización'!$G39+'7.3.1 Profesionalización'!$D39+'7.3.1 Profesionalización'!$E39+'7.3.1 Profesionalización'!$F39","v":0}]
[null,null,null,null,null,null,null,null,null,{"$f":"IFERROR('7.3.1 Profesionalización'!$K40/'7.3.1 Profesionalización'!$C40,\"$0.00\")","v":"$0.00"},{"$f":"'7.3.1 Profesionalización'!$I40+'7.3.1 Profesionalización'!$H40+'7.3.1 Profesionalización'!$G40+'7.3.1 Profesionalización'!$D40+'7.3.1 Profesionalización'!$E40+'7.3.1 Profesionalización'!$F40","v":0}]
[null,null,null,null,null,null,null,null,null,{"$f":"IFERROR('7.3.1 Profesionalización'!$K41/'7.3.1 Profesionalización'!$C41,\"$0.00\")","v":"$0.00"},{"$f":"'7.3.1 Profesionalización'!$I41+'7.3.1 Profesionalización'!$H41+'7.3.1 Profesionalización'!$G41+'7.3.1 Profesionalización'!$D41+'7.3.1 Profesionalización'!$E41+'7.3.1 Profesionalización'!$F41","v":0}]
[null,null,null,null,null,null,null,null,null,{"$f":"IFERROR('7.3.1 Profesionalización'!$K42/'7.3.1 Profesionalización'!$C42,\"$0.00\")","v":"$0.00"},{"$f":"'7.3.1 Profesionalización'!$I42+'7.3.1 Profesionalización'!$H42+'7.3.1 Profesionalización'!$G42+'7.3.1 Profesionalización'!$D42+'7.3.1 Profesionalización'!$E42+'7.3.1 Profesionalización'!$F42","v":0}]
[null,null,null,null,null,null,null,null,null,{"$f":"IFERROR('7.3.1 Profesionalización'!$K43/'7.3.1 Profesionalización'!$C43,\"$0.00\")","v":"$0.00"},{"$f":"'7.3.1 Profesionalización'!$I43+'7.3.1 Profesionalización'!$H43+'7.3.1 Profesionalización'!$G43+'7.3.1 Profesionalización'!$D43+'7.3.1 Profesionalización'!$E43+'7.3.1 Profesionalización'!$F43","v":0}]
[null,null,null,null,null,null,null,null,null,{"$f":"IFERROR('7.3.1 Profesionalización'!$K44/'7.3.1 Profesionalización'!$C44,\"$0.00\")","v":"$0.00"},{"$f":"'7.3.1 Profesionalización'!$I44+'7.3.1 Profesionalización'!$H44+'7.3.1 Profesionalización'!$G44+'7.3.1 Profesionalización'!$D44+'7.3.1 Profesionalización'!$E44+'7.3.1 Profesionalización'!$F44","v":0}]
[null,null,null,null,null,null,null,null,null,{"$f":"IFERROR('7.3.1 Profesionalización'!$K45/'7.3.1 Profesionalización'!$C45,\"$0.00\")","v":"$0.00"},{"$f":"'7.3.1 Profesionalización'!$I45+'7.3.1 Profesionalización'!$H45+'7.3.1 Profesionalización'!$G45+'7.3.1 Profesionalización'!$D45+'7.3.1 Profesionalización'!$E45+'7.3.1 Profesionalización'!$F45","v":0}]
[null,null,null,null,null,null,null,null,null,{"$f":"IFERROR('7.3.1 Profesionalización'!$K46/'7.3.1 Profesionalización'!$C46,\"$0.00\")","v":"$0.00"},{"$f":"'7.3.1 Profesionalización'!$I46+'7.3.1 Profesionalización'!$H46+'7.3.1 Profesionalización'!$G46+'7.3.1 Profesionalización'!$D46+'7.3.1 Profesionalización'!$E46+'7.3.1 Profesionalización'!$F46","v":0}]
[null,null,null,null,null,null,null,null,null,{"$f":"IFERROR('7.3.1 Profesionalización'!$K47/'7.3.1 Profesionalización'!$C47,\"$0.00\")","v":"$0.00"},{"$f":"'7.3.1 Profesionalización'!$I47+'7.3.1 Profesionalización'!$H47+'7.3.1 Profesionalización'!$G47+'7.3.1 Profesionalización'!$D47+'7.3.1 Profesionalización'!$E47+'7.3.1 Profesionalización'!$F47","v":0}]
[null,null,null,null,null,null,null,null,null,{"$f":"IFERROR('7.3.1 Profesionalización'!$K48/'7.3.1 Profesionalización'!$C48,\"$0.00\")","v":"$0.00"},{"$f":"'7.3.1 Profesionalización'!$I48+'7.3.1 Profesionalización'!$H48+'7.3.1 Profesionalización'!$G48+'7.3.1 Profesionalización'!$D48+'7.3.1 Profesionalización'!$E48+'7.3.1 Profesionalización'!$F48","v":0}]
[null,null,null,null,null,null,null,null,null,{"$f":"IFERROR('7.3.1 Profesionalización'!$K49/'7.3.1 Profesionalización'!$C49,\"$0.00\")","v":"$0.00"},{"$f":"'7.3.1 Profesionalización'!$I49+'7.3.1 Profesionalización'!$H49+'7.3.1 Profesionalización'!$G49+'7.3.1 Profesionalización'!$D49+'7.3.1 Profesionalización'!$E49+'7.3.1 Profesionalización'!$F49","v":0}]
[null,null,null,null,null,null,null,null,null,{"$f":"IFERROR('7.3.1 Profesionalización'!$K50/'7.3.1 Profesionalización'!$C50,\"$0.00\")","v":"$0.00"},{"$f":"'7.3.1 Profesionalización'!$I50+'7.3.1 Profesionalización'!$H50+'7.3.1 Profesionalización'!$G50+'7.3.1 Profesionalización'!$D50+'7.3.1 Profesionalización'!$E50+'7.3.1 Profesionalización'!$F50","v":0}]
[null,null,null,null,null,null,null,null,null,{"$f":"IFERROR('7.3.1 Profesionalización'!$K51/'7.3.1 Profesionalización'!$C51,\"$0.00\")","v":"$0.00"},{"$f":"'7.3.1 Profesionalización'!$I51+'7.3.1 Profesionalización'!$H51+'7.3.1 Profesionalización'!$G51+'7.3.1 Profesionalización'!$D51+'7.3.1 Profesionalización'!$E51+'7.3.1 Profesionalización'!$F51","v":0}]
[null,null,null,null,null,null,null,null,null,{"$f":"IFERROR('7.3.1 Profesionalización'!$K52/'7.3.1 Profesionalización'!$C52,\"$0.00\")","v":"$0.00"},{"$f":"'7.3.1 Profesionalización'!$I52+'7.3.1 Profesionalización'!$H52+'7.3.1 Profesionalización'!$G52+'7.3.1 Profesionalización'!$D52+'7.3.1 Profesionalización'!$E52+'7.3.1 Profesionalización'!$F52","v":0}]
[null,null,null,null,null,null,null,null,null,{"$f":"IFERROR('7.3.1 Profesionalización'!$K53/'7.3.1 Profesionalización'!$C53,\"$0.00\")","v":"$0.00"},{"$f":"'7.3.1 Profesionalización'!$I53+'7.3.1 Profesionalización'!$H53+'7.3.1 Profesionalización'!$G53+'7.3.1 Profesionalización'!$D53+'7.3.1 Profesionalización'!$E53+'7.3.1 Profesionalización'!$F53","v":0}]
[null,null,null,null,null,null,null,null,null,{"$f":"IFERROR('7.3.1 Profesionalización'!$K54/'7.3.1 Profesionalización'!$C54,\"$0.00\")","v":"$0.00"},{"$f":"'7.3.1 Profesionalización'!$I54+'7.3.1 Profesionalización'!$H54+'7.3.1 Profesionalización'!$G54+'7.3.1 Profesionalización'!$D54+'7.3.1 Profesionalización'!$E54+'7.3.1 Profesionalización'!$F54","v":0}]
[null,null,null,null,null,null,null,null,null,{"$f":"IFERROR('7.3.1 Profesionalización'!$K55/'7.3.1 Profesionalización'!$C55,\"$0.00\")","v":"$0.00"},{"$f":"'7.3.1 Profesionalización'!$I55+'7.3.1 Profesionalización'!$H55+'7.3.1 Profesionalización'!$G55+'7.3.1 Profesionalización'!$D55+'7.3.1 Profesionalización'!$E55+'7.3.1 Profesionalización'!$F55","v":0}]
[null,null,null,null,null,null,null,null,null,{"$f":"IFERROR('7.3.1 Profesionalización'!$K56/'7.3.1 Profesionalización'!$C56,\"$0.00\")","v":"$0.00"},{"$f":"'7.3.1 Profesionalización'!$I56+'7.3.1 Profesionalización'!$H56+'7.3.1 Profesionalización'!$G56+'7.3.1 Profesionalización'!$D56+'7.3.1 Profesionalización'!$E56+'7.3.1 Profesionalización'!$F56","v":0}]
["Total",null,null,{"$f":"SUBTOTAL(109,Tabla10[Pago prestación de servicios])","v":0},{"$f":"SUBTOTAL(109,Tabla10[Renta de espacio para capacitación (Coffe Break)])","v":0},{"$f":"SUBTOTAL(109,Tabla10[Material didáctico])","v":0},{"$f":"SUBTOTAL(109,Tabla10[Transporte (Aéreo, Terrestre)])","v":0},{"$f":"SUBTOTAL(109,Tabla10[Viáticos (Hospedaje, Alimentación)])","v":0},{"$f":"SUBTOTAL(109,Tabla10[Pago prestación de servicios2])","v":0},null,{"$f":"SUBTOTAL(109,Tabla10[Presupuesto Solicitado al CNEGSR])","v":0}]
[]
[]
[]
["Nota: El total de esta tabla debe coincidir con el total de la tabla \"Resumen_Refugios\""]

{"sheet":"7.4.1 Contención","index":2,"n_rows":8,"n_cols":5,"rows_kept":8,"cut":false,"hidden":false,"merged":[[1,0,1,1]]}
[]
["7.4.1 PROGRAMA DE CONTENCIÓN"]
[]
[]
["Tipo de Contencion","Núm. de personas que asistirán","Núm. de sesiones programadas","Costo por sesión","Total de presupuesto"]
["Individual",null,null,null,{"$f":"+'7.4.1 Contención'!$D6*'7.4.1 Contención'!$C6*'7.4.1 Contención'!$B6","v":0}]
["Grupal",null,null,null,{"$f":"+'7.4.1 Contención'!$D7*'7.4.1 Contención'!$C7","v":0}]
["Total",{"$f":"SUBTOTAL(109,Tabla11[Núm. de personas que asistirán])","v":0},{"$f":"SUBTOTAL(109,Tabla11[Núm. de sesiones programadas])","v":0},{"$f":"SUBTOTAL(109,Tabla11[Costo por sesión])","v":0},{"$f":"SUBTOTAL(109,Tabla11[Total de presupuesto])","v":0}]

{"sheet":"10. RH","index":3,"n_rows":39,"n_cols":6,"rows_kept":39,"cut":false,"hidden":false,"merged":[[1,1,1,3],[38,1,41,5],[2,1,3,5]]}
[]
[null,"10.  Recursos Humanos"]
[null,"(Enumerar el total de personas consideradas para ser contratadas en los diferentes cargos, responsabilidades o funciones a desempeñar de acuerdo al modelo de atención, que serían financiados por este proyecto)"]
[]
[]
["No.","Nombre de personas a contratar ","Cargo o función ","Número de Cédula Profesional ","Salario mensual por persona contratada","Cantidad total de los honorarios acumulados por cargo o función en el periodo de 8 meses"]
[1,null,null,null,null,{"$f":"E7*8","v":0}]
[2,null,null,null,null,{"$f":"E8*8","v":0}]
[3,null,null,null,null,0]
[4,null,null,null,null,0]
[5,null,null,null,null,0]
[6,null,null,null,null,0]
[7,null,null,null,null,0]
[8,null,null,null,null,0]
[9,null,null,null,null,0]
[10,null,null,null,null,0]
[11,null,null,null,null,0]
[12,null,null,null,null,0]
[13,null,null,null,null,0]
[14,null,null,null,null,0]
[15,null,null,null,null,0]
[16,null,null,null,null,0]
[17,null,null,null,null,{"$f":"E23*8","v":0}]
[18,null,null,null,null,0]
[19,null,null,null,null,0]
[20,null,null,null,null,{"$f":"E26*8","v":0}]
[21,null,null,null,null,0]
[22,null,null,null,null,0]
[23,null,null,null,null,0]
[24,null,null,null,null,0]
[25,null,null,null,null,0]
[26,null,null,null,null,{"$f":"E32*8","v":0}]
[27,null,null,null,null,0]
[28,null,null,null,null,0]
[29,null,null,null,null,0]
[30,null,null,null,null,{"$f":"E36*8","v":0}]
[null,"Total",null,null,{"$f":"SUBTOTAL(109,Tabla16[Salario mensual por persona contratada])","v":0},{"$f":"SUBTOTAL(109,Tabla16[Cantidad total de los honorarios acumulados por cargo o función en el periodo de 8 meses])","v":0}]
[]
[null,"(NOTA: Este formato deberá ser rubricado con tinta  color azul en cada una de sus hojas por el (la)  representante legal acreditado, sin logotipos, con márgenes convencionales, sin engargolar y en letra Arial 10 a excepción del cuadro de desglose de presupuesto)."]

{"sheet":"Refugio","index":4,"n_rows":5,"n_cols":6,"rows_kept":5,"cut":false,"hidden":false,"merged":[]}
[]
[]
[]
[]
["RUBRO DE GASTO","CONCEPTO DE GASTO","DESCRIPCIÓN","SOLICITADO AL CNEGSR","JUSTIFICACION","OTRAS APORTACIONES"]

{"sheet":"9.Desglose","index":5,"n_rows":6,"n_cols":5,"rows_kept":6,"cut":false,"hidden":false,"merged":[[2,0,2,2]]}
[]
[]
["9. DESGLOSE DEL PRESUPUESTO"]
[]
["","DESCRIPCIÓN","JUSTIFICACION"," SOLICITADO AL CNEGSR"," OTRAS APORTACIONES"]
["Total general"]

{"sheet":"Resumen","index":6,"n_rows":5,"n_cols":3,"rows_kept":5,"cut":false,"hidden":false,"merged":[[1,0,1,2]]}
[]
["RESUMEN POR RUBRO DE GASTO"]
[]
[""," SOLICITADO AL CNEGSR"," OTRAS APORTACIONES"]
["Total general","------","------"]

{"sheet":"Tabulador","index":7,"n_rows":22,"n_cols":9,"rows_kept":22,"cut":false,"hidden":false,"merged":[[2,1,2,3],[2,4,2,6],[2,7,2,8]]}
[]
[]
[null,"ZONA II",null,null,"ZONA III",null,null,"SECRETARIA SALUD"]
["REFUGIO","REFUGIO hasta 5 habitaciones","REFUGIO de 6 a 10 habitaciones ","REFUGIO de 11 y más habitaciones","REFUGIO hasta 5 habitaciones","REFUGIO de 6 a 10 habitaciones ","REFUGIO de 11 y más habitaciones","ZONA II","ZONA III"]
["Dirección",29369,33774,38840,32306,37152,42724,37253,41142]
["Administración",20486,23559,27093,22535,25915,29802,22013,24325]
["Jurídico (Licenciatura)",21178,24355,28008,23296,26790,30809,16348,18062]
["Trabajo Social (Licenciatura)",21178,24355,28008,23296,26790,30809,21223,23430]
["Trabajo Social (Técnico)",19067,21927,25216,20973,24119,27737,13796,15172]
["Psicología usuarias (Licenciatura)",21178,24355,28008,23296,26790,30809,23527,25979]
["Psicología infantil (Licenciatura)",21178,24355,28008,23296,26790,30809,23527,25979]
["Psicopedagogía (Licenciatura)",21178,24355,28008,23296,26790,30809,0,0]
["Enfermería (Licenciatura)",21178,24355,28008,23296,26790,30809,18254,20519]
["Enfermería (Técnico)",17878,20560,23644,19666,22616,26008,15620,17839]
["Pedagogía (Licenciatura)",21178,24355,28008,23296,26790,30809,0,0]
["Asistente Educativo (Técnico)",19067,21927,25216,20973,24119,27737,13796,15172]
["Puericultista (Técnico)",19067,21927,25216,20973,24119,27737,13796,15172]
["Recepción",12261,14100,16215,13487,15510,17836,11227,12018]
["Intendencia",9358,10762,12376,10294,11838,13614,10799,11757]
["Traducción",7818,8991,10340,8600,9890,11374,0,0]
["Conducción de vehículo",12587,14474,16646,13845,15922,18310,12078,13166]
["Informática (Técnico)",12261,14100,16215,13487,15510,17836,0,0]

{"sheet":"Cat_refugio","index":8,"n_rows":32,"n_cols":9,"rows_kept":32,"cut":false,"hidden":true,"merged":[]}
[]
[]
[]
[]
[]
["A.Operación","B.Recursos_Humanos","C.Mantenimiento","D.Equipamiento","E.Seguridad","F.Inserción_laboral","G.Profesionalización","H.Contención","I.Servicios_Asesorias"]
["Actividades de apoyo a la atención psicológica","Jurídico (Licenciatura)","Albañilería, resane y remodelación","Audio, video y electrónicos ","Dictamen protección civil","Insumos","Material didáctico","Pago prestación de servicios","Contabilidad"]
["Agua","Administración","Cancelería, herrería y vidrios","Enseres domésticos ","Equipamiento de seguridad","Pago prestación de servicios","Pago prestación de servicios",null,"Nutrición"]
["Alimentos","Conducción de vehículo","Carpintería","Enseres industriales","Instalaciones de seguridad",null,"Renta espacio",null,"Procesamiento de la información"]
["Artículos de higiene personal","Dirección","Cerrajería","Equipo de computo","Señalización",null,"Transporte"]
["Artículos de limpieza","Asistente educativa (Técnico)","Desazolve","Equipo de transporte","Vigilancia propia",null,"Viáticos (Hospedaje y/o alimentación)"]
["Artículos para bebé","Enfermería (Licenciatura)","Equipo de transporte","Equipo electrodoméstico","Vigilancia subrogada"]
["Atención médica de usuarias","Enfermería (Técnico)","Equipos de aire acondicionado","Equipo talleres inserción laboral"]
["Blancos","Intendencia","Equipos de cómputo","Mobiliario áreas comunes, recreativas o deportivas"]
["Calzado","Pedagogía (Licenciatura)","Fumigación","Mobiliario general para refugio "]
["Gas","Psicología  infantil (Licenciatura)","Gas","Mobiliario y equipo de oficina"]
["Gasolina vinculado a la operación del refugio","Psicología  usuaria (Licenciatura)","Impermeabilización","Mobiliario y equipo médico"]
["Gasolina vinculado usuarias","Psicopedagogía (Licenciatura)","Instalaciones y equipo de seguridad"]
["Gestiones de usuarias","Puericultista (Técnico)","Jardinería"]
["Energía eléctrica","Traducción de lenguas","Mobiliario de áreas recreativas o deportivas"]
["Material didáctico y de apoyo a las áreas de atención","Trabajo social (Licenciatura)","Mobiliario equipo y áreas de capacitación."]
["Mensajería y paquetería","Trabajo social (Técnico)","Mobiliario"]
["Uniformes y útiles escolares","Informática (Técnico)","Pintura"]
["Papelería y artículos oficina",null,"Plomería"]
["Renta",null,"Sistema eléctrico"]
["Ropa",null,"Sistemas contra incendio"]
["Telefonía celular"]
["Telefonía fija"]
["Transporte vinculado a operación del refugio"]
["Transporte vinculado a usuarias"]
["Viáticos vinculados a la operación del refugio"]
["Viáticos vinculados a usuarias"]